Workbook

Sheet Реєстр
B1: ctrl+q
C2: Журнал даних по витраченому бензину та проїханих кілометрах
C3: 1 | D3: 2 | E3: 3 | F3: 4 | G3: 5 | H3: 6 | I3: 7 | J3: 8
C4: Дата | D4: Покази при виїзді, км | E4: Проїхано, км | F4: Покази при повернені, км | G4: К-сть літрів, л | H4: Залишок при виїзді, л | I4: Залишок при повернені, л | J4: Особливі відмітки:
B5: 1 | C5: =Настройка!C$6 -> 01.07.2013 | D5: =Настройка!C21 -> 45000 | E5: 100 | F5: =IF(E5=""," ",D5+E5) -> 45100 | G5: 10 | H5: =Настройка!C22 -> 5 | I5: =IF($E5>0,IF(Настройка!$G$7="Літо",$H5-($E5*(Настройка!$E$7/100))+$G5,$H5-($E5*(Настройка!$E$8/100))+$G5),"") -> 6 | J5: один
B6: 2 | C6: =IF(MONTH(C$5)=MONTH(WORKDAY.INTL(C$5,ROW(A1),1,Настройка!C$8:C$19)),WORKDAY.INTL(C$5,ROW(A1),1,Настройка!C$8:C$19),"") -> 2013-07-02 | D6: =IF(C6="","",F5) -> 45100 | E6: 15 | F6: =IF(E6=""," ",D6+E6) -> 45115 | H6: =IF(C6="","",I5) -> 6 | I6: =IF($E6>0,IF(Настройка!$G$7="Літо",$H6-($E6*(Настройка!$E$7/100))+$G6,$H6-($E6*(Настройка!$E$8/100))+$G6),"") -> 4.7 | J6: два
B7: 3 | C7: =IF(MONTH(C$5)=MONTH(WORKDAY.INTL(C$5,ROW(A2),1,Настройка!C$8:C$19)),WORKDAY.INTL(C$5,ROW(A2),1,Настройка!C$8:C$19),"") -> 2013-07-03 | D7: 45115 | E7: 156 | F7: =IF(E7=""," ",D7+E7) -> 45271 | G7: 15 | H7: 4.7 | I7: =IF($E7>0,IF(Настройка!$G$7="Літо",$H7-($E7*(Настройка!$E$7/100))+$G7,$H7-($E7*(Настройка!$E$8/100))+$G7),"") -> 5.7 | J7: три
B8: 4 | C8: =IF(MONTH(C$5)=MONTH(WORKDAY.INTL(C$5,ROW(A3),1,Настройка!C$8:C$19)),WORKDAY.INTL(C$5,ROW(A3),1,Настройка!C$8:C$19),"") -> 2013-07-04 | D8: 45271 | E8: 48 | F8: =IF(E8=""," ",D8+E8) -> 45319 | H8: 5.7 | I8: =IF($E8>0,IF(Настройка!$G$7="Літо",$H8-($E8*(Настройка!$E$7/100))+$G8,$H8-($E8*(Настройка!$E$8/100))+$G8),"") -> 1.4 | J8: чотири
B9: 5 | C9: =IF(MONTH(C$5)=MONTH(WORKDAY.INTL(C$5,ROW(A4),1,Настройка!C$8:C$19)),WORKDAY.INTL(C$5,ROW(A4),1,Настройка!C$8:C$19),"") -> 2013-07-05 | D9: 45319 | E9: 85 | F9: =IF(E9=""," ",D9+E9) -> 45404 | G9: 25 | H9: 1.4 | I9: =IF($E9>0,IF(Настройка!$G$7="Літо",$H9-($E9*(Настройка!$E$7/100))+$G9,$H9-($E9*(Настройка!$E$8/100))+$G9),"") -> 18.8 | J9: пять
B10: 6 | C10: =IF(MONTH(C$5)=MONTH(WORKDAY.INTL(C$5,ROW(A5),1,Настройка!C$8:C$19)),WORKDAY.INTL(C$5,ROW(A5),1,Настройка!C$8:C$19),"") -> 2013-07-08 | D10: 45404 | E10: 198 | F10: =IF(E10=""," ",D10+E10) -> 45602 | H10: 18.8 | I10: =IF($E10>0,IF(Настройка!$G$7="Літо",$H10-($E10*(Настройка!$E$7/100))+$G10,$H10-($E10*(Настройка!$E$8/100))+$G10),"") -> 1 | J10: шість
B11: 7 | C11: =IF(MONTH(C$5)=MONTH(WORKDAY.INTL(C$5,ROW(A6),1,Настройка!C$8:C$19)),WORKDAY.INTL(C$5,ROW(A6),1,Настройка!C$8:C$19),"") -> 2013-07-09 | D11: 45602 | F11: =IF(E11=""," ",D11+E11) ->  | H11: 1 | I11: =IF($E11>0,IF(Настройка!$G$7="Літо",$H11-($E11*(Настройка!$E$7/100))+$G11,$H11-($E11*(Настройка!$E$8/100))+$G11),"") -> 
B12: 8 | C12: =IF(MONTH(C$5)=MONTH(WORKDAY.INTL(C$5,ROW(A7),1,Настройка!C$8:C$19)),WORKDAY.INTL(C$5,ROW(A7),1,Настройка!C$8:C$19),"") -> 2013-07-10 | F12: =IF(E12=""," ",D12+E12) ->  | I12: =IF($E12>0,IF(Настройка!$G$7="Літо",$H12-($E12*(Настройка!$E$7/100))+$G12,$H12-($E12*(Настройка!$E$8/100))+$G12),"") -> 
B13: 9 | C13: =IF(MONTH(C$5)=MONTH(WORKDAY.INTL(C$5,ROW(A8),1,Настройка!C$8:C$19)),WORKDAY.INTL(C$5,ROW(A8),1,Настройка!C$8:C$19),"") -> 2013-07-11 | F13: =IF(E13=""," ",D13+E13) ->  | I13: =IF($E13>0,IF(Настройка!$G$7="Літо",$H13-($E13*(Настройка!$E$7/100))+$G13,$H13-($E13*(Настройка!$E$8/100))+$G13),"") -> 
B14: 10 | C14: =IF(MONTH(C$5)=MONTH(WORKDAY.INTL(C$5,ROW(A9),1,Настройка!C$8:C$19)),WORKDAY.INTL(C$5,ROW(A9),1,Настройка!C$8:C$19),"") -> 2013-07-12 | F14: =IF(E14=""," ",D14+E14) ->  | I14: =IF($E14>0,IF(Настройка!$G$7="Літо",$H14-($E14*(Настройка!$E$7/100))+$G14,$H14-($E14*(Настройка!$E$8/100))+$G14),"") -> 
B15: 11 | C15: =IF(MONTH(C$5)=MONTH(WORKDAY.INTL(C$5,ROW(A10),1,Настройка!C$8:C$19)),WORKDAY.INTL(C$5,ROW(A10),1,Настройка!C$8:C$19),"") -> 2013-07-15 | F15: =IF(E15=""," ",D15+E15) ->  | I15: =IF($E15>0,IF(Настройка!$G$7="Літо",$H15-($E15*(Настройка!$E$7/100))+$G15,$H15-($E15*(Настройка!$E$8/100))+$G15),"") -> 
B16: 12 | C16: =IF(MONTH(C$5)=MONTH(WORKDAY.INTL(C$5,ROW(A11),1,Настройка!C$8:C$19)),WORKDAY.INTL(C$5,ROW(A11),1,Настройка!C$8:C$19),"") -> 2013-07-16 | F16: =IF(E16=""," ",D16+E16) ->  | I16: =IF($E16>0,IF(Настройка!$G$7="Літо",$H16-($E16*(Настройка!$E$7/100))+$G16,$H16-($E16*(Настройка!$E$8/100))+$G16),"") -> 
B17: 13 | C17: =IF(MONTH(C$5)=MONTH(WORKDAY.INTL(C$5,ROW(A12),1,Настройка!C$8:C$19)),WORKDAY.INTL(C$5,ROW(A12),1,Настройка!C$8:C$19),"") -> 2013-07-17 | F17: =IF(E17=""," ",D17+E17) ->  | I17: =IF($E17>0,IF(Настройка!$G$7="Літо",$H17-($E17*(Настройка!$E$7/100))+$G17,$H17-($E17*(Настройка!$E$8/100))+$G17),"") -> 
B18: 14 | C18: =IF(MONTH(C$5)=MONTH(WORKDAY.INTL(C$5,ROW(A13),1,Настройка!C$8:C$19)),WORKDAY.INTL(C$5,ROW(A13),1,Настройка!C$8:C$19),"") -> 2013-07-18 | F18: =IF(E18=""," ",D18+E18) ->  | I18: =IF($E18>0,IF(Настройка!$G$7="Літо",$H18-($E18*(Настройка!$E$7/100))+$G18,$H18-($E18*(Настройка!$E$8/100))+$G18),"") -> 
B19: 15 | C19: =IF(MONTH(C$5)=MONTH(WORKDAY.INTL(C$5,ROW(A14),1,Настройка!C$8:C$19)),WORKDAY.INTL(C$5,ROW(A14),1,Настройка!C$8:C$19),"") -> 2013-07-19 | F19: =IF(E19=""," ",D19+E19) ->  | I19: =IF($E19>0,IF(Настройка!$G$7="Літо",$H19-($E19*(Настройка!$E$7/100))+$G19,$H19-($E19*(Настройка!$E$8/100))+$G19),"") -> 
B20: 16 | C20: =IF(MONTH(C$5)=MONTH(WORKDAY.INTL(C$5,ROW(A15),1,Настройка!C$8:C$19)),WORKDAY.INTL(C$5,ROW(A15),1,Настройка!C$8:C$19),"") -> 2013-07-22 | F20: =IF(E20=""," ",D20+E20) ->  | I20: =IF($E20>0,IF(Настройка!$G$7="Літо",$H20-($E20*(Настройка!$E$7/100))+$G20,$H20-($E20*(Настройка!$E$8/100))+$G20),"") -> 
B21: 17 | C21: =IF(MONTH(C$5)=MONTH(WORKDAY.INTL(C$5,ROW(A16),1,Настройка!C$8:C$19)),WORKDAY.INTL(C$5,ROW(A16),1,Настройка!C$8:C$19),"") -> 2013-07-23 | F21: =IF(E21=""," ",D21+E21) ->  | I21: =IF($E21>0,IF(Настройка!$G$7="Літо",$H21-($E21*(Настройка!$E$7/100))+$G21,$H21-($E21*(Настройка!$E$8/100))+$G21),"") -> 
B22: 18 | C22: =IF(MONTH(C$5)=MONTH(WORKDAY.INTL(C$5,ROW(A17),1,Настройка!C$8:C$19)),WORKDAY.INTL(C$5,ROW(A17),1,Настройка!C$8:C$19),"") -> 2013-07-24 | F22: =IF(E22=""," ",D22+E22) ->  | I22: =IF($E22>0,IF(Настройка!$G$7="Літо",$H22-($E22*(Настройка!$E$7/100))+$G22,$H22-($E22*(Настройка!$E$8/100))+$G22),"") -> 
B23: 19 | C23: =IF(MONTH(C$5)=MONTH(WORKDAY.INTL(C$5,ROW(A18),1,Настройка!C$8:C$19)),WORKDAY.INTL(C$5,ROW(A18),1,Настройка!C$8:C$19),"") -> 2013-07-25 | F23: =IF(E23=""," ",D23+E23) ->  | I23: =IF($E23>0,IF(Настройка!$G$7="Літо",$H23-($E23*(Настройка!$E$7/100))+$G23,$H23-($E23*(Настройка!$E$8/100))+$G23),"") -> 
B24: 20 | C24: =IF(MONTH(C$5)=MONTH(WORKDAY.INTL(C$5,ROW(A19),1,Настройка!C$8:C$19)),WORKDAY.INTL(C$5,ROW(A19),1,Настройка!C$8:C$19),"") -> 2013-07-26 | F24: =IF(E24=""," ",D24+E24) ->  | I24: =IF($E24>0,IF(Настройка!$G$7="Літо",$H24-($E24*(Настройка!$E$7/100))+$G24,$H24-($E24*(Настройка!$E$8/100))+$G24),"") -> 
B25: 21 | C25: =IF(MONTH(C$5)=MONTH(WORKDAY.INTL(C$5,ROW(A20),1,Настройка!C$8:C$19)),WORKDAY.INTL(C$5,ROW(A20),1,Настройка!C$8:C$19),"") -> 2013-07-29 | F25: =IF(E25=""," ",D25+E25) ->  | I25: =IF($E25>0,IF(Настройка!$G$7="Літо",$H25-($E25*(Настройка!$E$7/100))+$G25,$H25-($E25*(Настройка!$E$8/100))+$G25),"") -> 
B26: 22 | C26: =IF(MONTH(C$5)=MONTH(WORKDAY.INTL(C$5,ROW(A21),1,Настройка!C$8:C$19)),WORKDAY.INTL(C$5,ROW(A21),1,Настройка!C$8:C$19),"") -> 2013-07-30 | F26: =IF(E26=""," ",D26+E26) ->  | I26: =IF($E26>0,IF(Настройка!$G$7="Літо",$H26-($E26*(Настройка!$E$7/100))+$G26,$H26-($E26*(Настройка!$E$8/100))+$G26),"") -> 
B27: 23 | C27: =IF(MONTH(C$5)=MONTH(WORKDAY.INTL(C$5,ROW(A22),1,Настройка!C$8:C$19)),WORKDAY.INTL(C$5,ROW(A22),1,Настройка!C$8:C$19),"") -> 2013-07-31 | F27: =IF(E27=""," ",D27+E27) ->  | I27: =IF($E27>0,IF(Настройка!$G$7="Літо",$H27-($E27*(Настройка!$E$7/100))+$G27,$H27-($E27*(Настройка!$E$8/100))+$G27),"") -> 
B28: 24 | C28: =IF(MONTH(C$5)=MONTH(WORKDAY.INTL(C$5,ROW(A23),1,Настройка!C$8:C$19)),WORKDAY.INTL(C$5,ROW(A23),1,Настройка!C$8:C$19),"") ->  | F28: =IF(E28=""," ",D28+E28) ->  | I28: =IF($E28>0,IF(Настройка!$G$7="Літо",$H28-($E28*(Настройка!$E$7/100))+$G28,$H28-($E28*(Настройка!$E$8/100))+$G28),"") -> 
B29: 25 | C29: =IF(MONTH(C$5)=MONTH(WORKDAY.INTL(C$5,ROW(A24),1,Настройка!C$8:C$19)),WORKDAY.INTL(C$5,ROW(A24),1,Настройка!C$8:C$19),"") ->  | F29: =IF(E29=""," ",D29+E29) ->  | I29: =IF($E29>0,IF(Настройка!$G$7="Літо",$H29-($E29*(Настройка!$E$7/100))+$G29,$H29-($E29*(Настройка!$E$8/100))+$G29),"") -> 
B30: 26 | C30: =IF(MONTH(C$5)=MONTH(WORKDAY.INTL(C$5,ROW(A25),1,Настройка!C$8:C$19)),WORKDAY.INTL(C$5,ROW(A25),1,Настройка!C$8:C$19),"") ->  | F30: =IF(E30=""," ",D30+E30) ->  | I30: =IF($E30>0,IF(Настройка!$G$7="Літо",$H30-($E30*(Настройка!$E$7/100))+$G30,$H30-($E30*(Настройка!$E$8/100))+$G30),"") -> 
B31: 27 | C31: =IF(MONTH(C$5)=MONTH(WORKDAY.INTL(C$5,ROW(A26),1,Настройка!C$8:C$19)),WORKDAY.INTL(C$5,ROW(A26),1,Настройка!C$8:C$19),"") ->  | F31: =IF(E31=""," ",D31+E31) ->  | I31: =IF($E31>0,IF(Настройка!$G$7="Літо",$H31-($E31*(Настройка!$E$7/100))+$G31,$H31-($E31*(Настройка!$E$8/100))+$G31),"") -> 
B32: 28 | C32: =IF(MONTH(C$5)=MONTH(WORKDAY.INTL(C$5,ROW(A27),1,Настройка!C$8:C$19)),WORKDAY.INTL(C$5,ROW(A27),1,Настройка!C$8:C$19),"") ->  | F32: =IF(E32=""," ",D32+E32) ->  | I32: =IF($E32>0,IF(Настройка!$G$7="Літо",$H32-($E32*(Настройка!$E$7/100))+$G32,$H32-($E32*(Настройка!$E$8/100))+$G32),"") -> 
B33: 29 | C33: =IF(MONTH(C$5)=MONTH(WORKDAY.INTL(C$5,ROW(A28),1,Настройка!C$8:C$19)),WORKDAY.INTL(C$5,ROW(A28),1,Настройка!C$8:C$19),"") ->  | F33: =IF(E33=""," ",D33+E33) ->  | I33: =IF($E33>0,IF(Настройка!$G$7="Літо",$H33-($E33*(Настройка!$E$7/100))+$G33,$H33-($E33*(Настройка!$E$8/100))+$G33),"") -> 
B34: 30 | C34: =IF(MONTH(C$5)=MONTH(WORKDAY.INTL(C$5,ROW(A30),1,Настройка!C$8:C$19)),WORKDAY.INTL(C$5,ROW(A30),1,Настройка!C$8:C$19),"") ->  | D34: =IF(C34="","",#REF!) ->  | F34: =IF(E34=""," ",D34+E34) ->  | H34: =IF(C34="","",#REF!) ->  | I34: =IF($E34>0,IF(Настройка!$G$7="Літо",$H34-($E34*(Настройка!$E$7/100))+$G34,$H34-($E34*(Настройка!$E$8/100))+$G34),"") -> 
E35: Проїхано, км | F35: Покази спідометра в кінці | G35: К-сть літрів, л | H35: Залишок на кінець, л | I35: Використано, л
B36: Вивод: | E36: =SUM(E5:E34) -> 602 | F36: =LOOKUP(9E+307,F5:F34) -> 45602 | G36: =SUM(G5:G34) -> 50 | H36: =LOOKUP(9E+307,H5:H34) -> 1 | I36: =IF(Настройка!G7="Літо",E36*(Настройка!E7/100),E36*(Настройка!E8/100)) -> 54.2

Sheet Настройка
B1: № дор. Листа: | C1: 002833 | D1: Марка пального: | E1: Режим водія:
B2: Водій: | C2: DAdadad
B3: Авто: | C3: 625255515 | D3: А-92 | E3: без графіка
B4: Держ номер | C4: 525055205 | D4: А-95 | E4: з 9:00 до 18:00
B5: Хто використовує? | C5: В 62620 | D5: А-98
B6: Дата початку робочого місяця | C6: 01.07.2013 | E6: Норма: | F6: Дата закінчення пори року: | G6: Пора року:
B7: Вибрана марка пального | D7: Літній період: | E7: 9 | F7: 31.03.2013 | G7: =IF(MONTH($C$6)>MONTH(F7),IF(MONTH($C$6)>MONTH(F8),"Зима","Літо")) -> Літо
B8: Не робочі дні: | D8: Зимовий період: | E8: 10 | F8: 31.10.2013
B20: Роб режим:
B21: покази при виїзді | C21: 45000
B22: Залишок бензину при виїзді | C22: 5
B73: марка пального: | C73: А-92
C74: А-95
C75: А-98
B77: Режим водія: | C77: без графіка
C78: з 9:00 до 18:00

Sheet Путевой лист
B1: Місце печатки | H1: Типова форма N 3 | I1: . | J1: IV. Результати роботи автомобіля
B2: (штампу) підприємства | F2: Затверджено Наказом Державного комітету статистики України | I2: . | J2: Витрати пального, л | L2: Загальний пробіг, км | M2: Час у наряді, год | N2: Розрахунок вартості послуг | P2: Розрахунок зарплати водієві
H3: від 17 лютого 1998 р. N 74 | I3: . | J3: за нормою | K3: фактично
I4: .
B5: ПОДОРОЖНІЙ ЛИСТ СЛУЖБОВОГО ЛЕГКОВОГО АВТОМОБІЛЯ | I5: . | J5: =IF(Настройка!$G$7="Літо",Настройка!$E$7,Настройка!$E$8) -> 9 | K5: =IF(Настройка!$G$7="Літо",Настройка!$E$7,Настройка!$E$8) -> 9 | L5: =Реєстр!E28 -> 0 | N5: за пробіг | P5: за пробіг
C6: =CONCATENATE("№ ",Настройка!C1) -> № 002833 | I6: . | N6: за час у наряді | P6: за час у наряді
C7: =CONCATENATE("від ",TEXT($B$73,"[$-FC22]d mmmm yyyy"&" року")) -> від 31 липня 2013 року | I7: . | N7: Всього | P7: Всього
I8: .
B9: Режим роботи водія | E9: =Настройка!$C$20 -> 0 | H9: Коди | I9: .
B10: Автомобіль | E10: =CONCATENATE(Настройка!$C$3,", ",Настройка!$C$4) -> 625255515, 525055205 | I10: . | J10: Особа, яка користувалася автомобілем:
C11: марка, державний номер, гаражний номер | I11: . | O11: підпис, печатка (штамп)
B12: Водій | I12: . | J12: ="Особливі відмітки: "&Реєстр!J28 -> Особливі відмітки:
C13: прізвище, ім'я, по батькові; номер посвідчення водія | I13: .
B14: колона ___________ | E14: бригада _________________ | I14: .
I15: .
B16: I. Завдання водієві | F16: III. Рух пального, літрів | I16: .
B17: У чиє розпорядження | C17: Час прибуття | E17: Час вибуття | F17: Марка пального | G17: 8 | H17: =Настройка!C7 -> 0 | I17: .
B18: 1 | C18: 2 | E18: 3 | F18: Код марки | G18: 9 | H18: - | I18: .
B19: =Настройка!C5 -> В 62620 | C19: =Настройка!C20 -> 00:00:00 | F19: Видано | G19: 10 | H19: =Реєстр!G27 -> 0 | I19: .
F20: Залишок: | G20: 11 | H20: =Реєстр!H27 ->  | I20: .
F21: при виїзді | I21: .
F22: при поверненні | G22: 12 | H22: =Реєстр!I27 ->  | I22: .
F23: Заправник | I23: .
F24: прізвище, підпис | I24: .
B25: II. Робота водія та автомобіля | F25: Водій за станом здоров'я до керування допущений | I25: .
B26: Показники спідометра | E26: Х | F26: допущений | I26: .
B27: при виїзді з гаража | D27: 4 | E27: =Реєстр!D27 ->  | F27: Лікар ___________________ | I27: .
B28: при поверненні до гаража | D28: 5 | E28: =Реєстр!F27 ->  | F28: Виїзд дозволений | I28: .
F29: Механік ___________________________ | I29: .
B30: Час фактичний | E30: Х | F30: Автомобіль прийняв ___________ | I30: .
B31: при виїзді з гаража | D31: 6 | E31: 09:05:00 | F31: підпис водія | I31: .
F32: Автомобіль здав __________________ | I32: .
B33: при поверненні до гаражу | D33: 7 | E33: 17:55:00 | F33: Автомобіль прийняв ______________ | I33: .
F34: підпис механіка | I34: .
B35: Посвідчення водія перевірив, завдання видав ______________________________ | I35: . | J35: Бухгалтер __________________ | N35: Таксувальник _________________
F36: підпис диспетчера | I36: . | K36: підпис | O36: підпис
B37: Місце печатки | H37: Типова форма N 3 | J37: IV. Результати роботи автомобіля
B38: (штампу) підприємства | F38: Затверджено Наказом Державного комітету статистики України | J38: Витрати пального, л | L38: Загальний пробіг, км | M38: Час у наряді, год | N38: Розрахунок вартості послуг | P38: Розрахунок зарплати водієві
H39: від 17 лютого 1998 р. N 74 | J39: за нормою | K39: фактично
B41: ПОДОРОЖНІЙ ЛИСТ СЛУЖБОВОГО ЛЕГКОВОГО АВТОМОБІЛЯ | J41: =IF(Настройка!$G$7="Літо",Настройка!$E$7,Настройка!$E$8) -> 9 | K41: =IF(Настройка!$G$7="Літо",Настройка!$E$7,Настройка!$E$8) -> 9 | L41: =Реєстр!E27 -> 0 | N41: за пробіг | P41: за пробіг
C42: =CONCATENATE("№ ",Настройка!C1) -> № 002833 | N42: за час у наряді | P42: за час у наряді
C43: =CONCATENATE("від ",TEXT($B$74,"[$-FC22]d mmmm yyyy"&" року")) -> від | N43: Всього | P43: Всього
B45: Режим роботи водія | E45: =Настройка!$C$20 -> 0 | H45: Коди
B46: Автомобіль | E46: =CONCATENATE(Настройка!$C$3,", ",Настройка!$C$4) -> 625255515, 525055205 | J46: Особа, яка користувалася автомобілем:
C47: марка, державний номер, гаражний номер | O47: підпис, печатка (штамп)
B48: Водій | J48: ="Особливі відмітки: "&Реєстр!J27 -> Особливі відмітки:
C49: прізвище, ім'я, по батькові; номер посвідчення водія
B50: колона ___________ | E50: бригада _________________
B52: I. Завдання водієві | F52: III. Рух пального, літрів
B53: У чиє розпорядження | C53: Час прибуття | E53: Час вибуття | F53: Марка пального | G53: 8 | H53: =Настройка!C43 -> 0
B54: 1 | C54: 2 | E54: 3 | F54: Код марки | G54: 9 | H54: -
B55: =Настройка!C41 -> 0 | C55: =Настройка!C56 -> 00:00:00 | F55: Видано | G55: 10 | H55: =Реєстр!G28 -> 0
F56: Залишок: | G56: 11 | H56: =Реєстр!H28 -> 
F57: при виїзді
F58: при поверненні | G58: 12 | H58: =Реєстр!I28 -> 
F59: Заправник
F60: прізвище, підпис
B61: II. Робота водія та автомобіля | F61: Водій за станом здоров'я до керування допущений
B62: Показники спідометра | E62: Х | F62: допущений
B63: при виїзді з гаража | D63: 4 | E63: =Реєстр!D28 ->  | F63: Лікар ___________________
B64: при поверненні до гаража | D64: 5 | E64: =Реєстр!F28 ->  | F64: Виїзд дозволений
F65: Механік ___________________________
B66: Час фактичний | E66: Х | F66: Автомобіль прийняв ___________
B67: при виїзді з гаража | D67: 6 | E67: 09:05:00 | F67: підпис водія
F68: Автомобіль здав __________________
B69: при поверненні до гаражу | D69: 7 | E69: 17:55:00 | F69: Автомобіль прийняв ______________
F70: підпис механіка
B71: Посвідчення водія перевірив, завдання видав ______________________________ | J71: Бухгалтер __________________ | N71: Таксувальник _________________
F72: підпис диспетчера | K72: підпис | O72: підпис
B73: =Реєстр!C27 -> 41486 | C73: дата
B74: =Реєстр!C28 ->  | C74: дата
